fUST/lending_fUST_20240608
["ID","MTS","AMOUNT","RATE_DAILY","PERIOD"]
[328807823,1717812648150,-500.0,0.00019178,2]
[328807824,1717812648161,-500.0,0.00019178,2]
[328807825,1717812648171,-500.0,0.00019178,2]
[328807826,1717812648182,-500.0,0.00019178,2]
[328807827,1717812648193,-500.0,0.00019178,2]
[328807828,1717812648205,-500.0,0.00019178,2]
[328807829,1717812648215,-500.0,0.00019178,2]
[328807830,1717812648226,-500.0,0.00019178,2]
[328807831,1717812648238,-500.0,0.00019178,2]
[328807832,1717812648248,-627.09370939,0.00019178,2]
[328807833,1717812648258,-530.96359357,0.00019178,2]
[328807834,1717812648269,-500.0,0.00019178,2]
[328807835,1717812648279,-500.0,0.00019178,2]
[328807836,1717812648289,-157.10992959,0.00019178,2]
[328807837,1717812648299,-500.0,0.00019178,2]
[328807838,1717812648309,-154.52587118,0.00019178,2]
[328807839,1717812648318,-500.0,0.00019178,2]
[328807840,1717812648328,-500.0,0.00019178,2]
[328807841,1717812648337,-500.0,0.00019178,2]
[328807842,1717812648347,-478.3861852,0.00019178,2]
[328807843,1717812648356,-500.0,0.00019178,2]
[328807844,1717812648370,-172.64815058,0.00019178,2]
[328807845,1717812648380,-500.0,0.00019178,2]
[328807846,1717812648390,-500.0,0.00019178,2]
[328807847,1717812648399,-500.0,0.00019178,2]
[328807848,1717812648410,-500.0,0.00019178,2]
[328807849,1717812648420,-532.31447433,0.00019178,2]
[328807850,1717812648429,-532.31447433,0.00019178,2]
[328807851,1717812648438,-532.31447433,0.00019178,2]
[328807852,1717812648450,-532.31447433,0.00019178,2]
[328807853,1717812648460,-532.31447433,0.00019178,2]
[328807854,1717812648470,-532.31447433,0.00019178,2]
[328807855,1717812648479,-532.31447433,0.00019178,2]
[328807856,1717812648489,-532.31447433,0.00019178,2]
[328807857,1717812648500,-532.31447433,0.00019178,2]
[328807858,1717812648511,-532.31447433,0.00019178,2]
[328807859,1717812648520,-532.31447433,0.00019178,2]
[328807860,1717812648530,-532.31447433,0.00019178,2]
[328807861,1717812648541,-532.31447433,0.00019178,2]
[328807862,1717812648551,-532.31447433,0.00019178,2]
[328807863,1717812648561,-532.31447433,0.00019178,2]
[328807864,1717812648571,-532.31447433,0.00019178,2]
[328807865,1717812648581,-532.31447433,0.00019178,2]
[328807866,1717812648590,-483.04016116,0.00019178,2]
[328807867,1717812648600,-500.0,0.00019178,2]
[328807868,1717812648610,-402.3122018,0.00019178,2]
[328807869,1717812648620,-549.89978093,0.00019178,2]
[328807870,1717812648632,-312.9683551,0.00019178,2]
[328807871,1717812648641,-500.0,0.00019178,2]
[328807872,1717812648651,-500.0,0.00019178,2]
[328807873,1717812648661,-436.5253027,0.00019178,2]
[328807874,1717812648670,-500.0,0.00019178,2]
[328807875,1717812648679,-319.41218127,0.00019178,2]
[328807876,1717812648689,-575.05131216,0.00019178,2]
[328807877,1717812648698,-410.42146477,0.00019178,2]
[328807878,1717812648708,-500.0,0.00019178,2]
[328807879,1717812648718,-403.96244778,0.00019178,2]
[328807880,1717812648727,-447.97972828,0.00019178,2]
[328807881,1717812648736,-372.31951346,0.00019178,2]
[328807882,1717812648746,-500.0,0.00019178,2]
[328807883,1717812648756,-437.26066896,0.00019178,2]
[328807884,1717812648766,-426.33875556,0.00019178,2]
[328807885,1717812648775,-357.7365201,0.00019178,2]
[328807886,1717812648785,-184.06870398,0.00019178,2]
[328807887,1717812648795,-455.51236971,0.00019178,2]
[328807888,1717812648804,-163.39502356,0.00019178,2]
[328807889,1717812648814,-411.60630004,0.00019178,2]
[328807890,1717812648824,-411.24156106,0.00019178,2]
[328807891,1717812648835,-354.80305225,0.00019178,2]
[328807892,1717812648844,-500.0,0.00019178,2]
[328807893,1717812648854,-500.0,0.00019178,2]
[328807894,1717812648864,-500.0,0.00019178,2]
[328807895,1717812648875,-500.0,0.00019178,2]
[328807896,1717812648884,-500.0,0.00019178,2]
[328807897,1717812648894,-617.00366509,0.00019178,2]
[328807898,1717812648904,-500.0,0.00019178,2]
[328807899,1717812648913,-501.49936856,0.00019178,2]
[328807900,1717812648923,-500.0,0.00019178,2]
[328807901,1717812648933,-526.50827399,0.00019178,2]
[328807902,1717812648943,-500.0,0.00019178,2]
[328807903,1717812648952,-513.26829961,0.00019178,2]
[328807904,1717812648962,-309.7135034,0.00019178,2]
[328807905,1717812648972,-500.0,0.00019178,2]
[328807906,1717812648981,-546.12491712,0.00019178,2]
[328807907,1717812648991,-500.0,0.00019178,2]
[328807908,1717812649000,-1803.09,0.00019178,2]
[328807909,1717812649010,-500.0,0.00019178,2]
[328807910,1717812649019,-500.0,0.00019178,2]
[328807911,1717812649028,-151.0,0.00019178,2]
[328807912,1717812649038,-151.0,0.00019178,2]
[328807913,1717812649047,-151.0,0.00019178,2]
[328807914,1717812649056,-151.0,0.00019178,2]
[328807915,1717812649065,-151.0,0.00019178,2]
[328807916,1717812649075,-500.0,0.00019178,2]
[328807917,1717812649085,-151.0,0.00019178,2]
[328807918,1717812649095,-151.0,0.00019178,2]
[328807919,1717812649104,-151.0,0.00019178,2]
[328807920,1717812649113,-281.624258,0.00019178,2]
[328807921,1717812649123,-500.0,0.00019178,2]
[328807922,1717812649133,-500.0,0.00019178,2]
[328807923,1717812649142,-500.0,0.00019178,2]
[328807924,1717812649151,-503.06712824,0.00019178,2]
[328807925,1717812649161,-500.0,0.00019178,2]
[328807926,1717812649171,-842.42,0.00019178,2]
[328807927,1717812649284,-500.0,0.00019178,2]
[328807928,1717812649295,-481.9340206,0.00019178,2]
[328807929,1717812649304,-504.04771315,0.00019178,2]
[328807930,1717812649314,-500.0,0.00019178,2]
[328807931,1717812649323,-228.91636923,0.00019178,2]
[328807932,1717812649332,-512.96265904,0.00019178,2]
[328807933,1717812649342,-500.0,0.00019178,2]
[328807934,1717812649351,-501.0057089,0.00019178,2]
[328807935,1717812649360,-501.38684283,0.00019178,2]
[328807936,1717812649373,-758.01,0.00019178,4]
[328807937,1717812649382,-500.0,0.00019178,2]
[328807938,1717812649391,-500.0,0.00019178,2]
[328807939,1717812649401,-500.0,0.00019178,2]
[328807940,1717812649412,-500.0,0.00019178,2]
[328807941,1717812649421,-501.34617425,0.00019178,2]
[328807942,1717812649430,-854.13,0.00019178,2]
[328807943,1717812649439,-500.0,0.00019178,2]
[328807944,1717812649453,-501.92856212,0.00019178,2]
[328807945,1717812649463,-519.65759542,0.00019178,2]
[328807946,1717812649472,-513.79,0.00019178,2]
[328807947,1717812649484,-500.43617278,0.00019178,2]
[328807948,1717812649493,-509.75838768,0.00019178,2]
[328807949,1717812649504,-555.5901155,0.00019178,2]
[328807950,1717812649513,-500.0,0.00019178,2]
[328807951,1717812649523,-500.0,0.00019178,2]
[328807952,1717812649533,-523.3044926,0.00019178,2]
[328807953,1717812649544,-500.0,0.00019178,2]
[328807954,1717812649553,-500.0,0.00019178,2]
[328807955,1717812649563,-500.0,0.00019178,2]
[328807956,1717812649572,-500.0,0.00019178,2]
[328807957,1717812649582,-155.3592591,0.00019178,2]
[328807958,1717812649592,-500.0,0.00019178,2]
[328807959,1717812649603,-500.0,0.00019178,2]
[328807960,1717812649613,-514.68717327,0.00019178,2]
[328807961,1717812649625,-501.3651117,0.00019178,2]
[328807962,1717812649636,-500.39206255,0.00019178,2]
[328807963,1717812649645,-502.38963228,0.00019178,2]
[328807964,1717812649655,-512.72565972,0.00019178,2]
[328807965,1717812649664,-502.89242109,0.00019178,2]
[328807966,1717812649674,-500.0,0.00019178,2]
[328807967,1717812649683,-501.43202487,0.00019178,2]
[328807968,1717812649692,-460.06708155,0.00019178,2]
[328807969,1717812649702,-501.06456662,0.00019178,2]
[328807970,1717812649712,-500.0,0.00019178,2]
[328807971,1717812649722,-501.50106446,0.00019178,2]
[328807972,1717812649732,-500.56557399,0.00019178,2]
[328807973,1717812649742,-502.08364525,0.00019178,2]
[328807974,1717812649751,-501.06783524,0.00019178,2]
[328807975,1717812649761,-500.0,0.00019178,2]
[328807976,1717812649771,-160.87206397,0.00019178,2]
[328807977,1717812649781,-500.0,0.00019178,2]
[328807978,1717812649790,-500.0,0.00019178,2]
[328807979,1717812649800,-500.0,0.00019178,2]
[328807980,1717812649809,-500.0,0.00019178,2]
[328807981,1717812649819,-505.60632257,0.00019178,2]
[328807982,1717812649828,-501.38575545,0.00019178,2]
[328807983,1717812649838,-500.0,0.00019178,2]
[328807984,1717812649847,-500.0,0.00019178,2]
[328807985,1717812649856,-1000.0,0.00019178,2]
[328807986,1717812649865,-503.41293673,0.00019178,2]
[328807987,1717812649875,-500.0,0.00019178,2]
[328807988,1717812649884,-500.0,0.00019178,2]
[328807989,1717812649893,-505.00123935,0.00019178,2]
[328807990,1717812649903,-535.85,0.00019178,2]
[328807991,1717812649912,-500.0,0.00019178,2]
[328807992,1717812649921,-505.83576621,0.00019178,2]
[328807993,1717812649931,-500.0,0.00019178,2]
[328807994,1717812649940,-500.0,0.00019178,2]
[328807995,1717812649950,-500.0,0.00019178,2]
[328807996,1717812649960,-500.0,0.00019178,2]
[328807997,1717812649969,-500.0,0.00019178,2]
[328807998,1717812649979,-525.73894369,0.00019178,2]
[328807999,1717812649990,-500.0,0.00019178,2]
[328808000,1717812649999,-414.50531206,0.00019178,2]
[328808001,1717812650009,-514.25966072,0.00019178,2]
[328808002,1717812650020,-2267.85,0.00019178,2]
[328808003,1717812650029,-500.0,0.00019178,2]
[328808004,1717812650039,-524.18573101,0.00019178,2]
[328808005,1717812650048,-497.61513339,0.00019178,2]
[328808006,1717812650058,-500.0,0.00019178,2]
[328808007,1717812650068,-525.40353448,0.00019178,2]
[328808008,1717812650080,-500.0,0.00019178,2]
[328808009,1717812650090,-525.53853079,0.00019178,2]
[328808010,1717812650100,-514.54231882,0.00019178,2]
[328808011,1717812650109,-859.82,0.00019178,2]
[328808012,1717812650119,-500.0,0.00019178,2]
[328808013,1717812650130,-515.66848655,0.00019178,2]
[328808014,1717812650139,-510.17,0.00019178,2]
[328808015,1717812650148,-500.0,0.00019178,2]
[328808016,1717812650159,-501.25492051,0.00019178,2]
[328808017,1717812650170,-500.0,0.00019178,2]
[328808018,1717812650181,-500.0,0.00019178,2]
[328808019,1717812650191,-500.90690939,0.00019178,2]
[328808020,1717812650202,-516.03105472,0.00019178,2]
[328808021,1717812650211,-500.0,0.00019178,2]
[328808022,1717812650220,-503.57826673,0.00019178,2]
[328808023,1717812650230,-500.0,0.00019178,2]
[328808024,1717812650240,-624.59214043,0.00019178,2]
[328808025,1717812650249,-500.0,0.00019178,2]
[328808026,1717812650258,-500.0,0.00019178,2]
[328808027,1717812650267,-500.0,0.00019178,2]
[328808028,1717812650276,-155.154419,0.00019178,2]
[328808029,1717812650285,-500.0,0.00019178,2]
[328808030,1717812650294,-500.0,0.00019178,2]
[328808031,1717812650303,-500.0,0.00019178,2]
[328808032,1717812650313,-500.0,0.00019178,2]
[328808033,1717812650323,-500.0,0.00019178,2]
[328808034,1717812650333,-500.0,0.00019178,2]
[328808035,1717812650342,-500.0,0.00019178,2]
[328808036,1717812650351,-500.0,0.00019178,2]
[328808037,1717812650361,-500.0,0.00019178,2]
[328808038,1717812650376,-502.35768807,0.00019178,2]
[328808039,1717812650385,-502.42699242,0.00019178,2]
[328808040,1717812650395,-510.12021597,0.00019178,2]
[328808041,1717812650405,-500.0,0.00019178,2]
[328808042,1717812650416,-500.0,0.00019178,2]
[328808043,1717812650426,-500.0,0.00019178,2]
[328808044,1717812650437,-500.0,0.00019178,2]
[328808045,1717812650450,-500.0,0.00019178,2]
[328808046,1717812650461,-500.0,0.00019178,2]
[328808047,1717812650471,-500.0,0.00019178,2]
[328808048,1717812650480,-500.0,0.00019178,2]
[328808049,1717812650489,-500.0,0.00019178,2]
[328808050,1717812650499,-500.0,0.00019178,2]
[328808051,1717812650509,-500.0,0.00019178,2]
[328808052,1717812650518,-500.0,0.00019178,2]
[328808053,1717812650528,-500.0,0.00019178,2]
[328808054,1717812650537,-500.0,0.00019178,2]
[328808055,1717812650547,-500.0,0.00019178,2]
[328808056,1717812650556,-500.0,0.00019178,2]
[328808057,1717812650566,-500.0,0.00019178,2]
[328808058,1717812650575,-500.0,0.00019178,2]
[328808059,1717812650585,-500.0,0.00019178,2]
[328808060,1717812650595,-500.0,0.00019178,2]
[328808061,1717812650605,-500.0,0.00019178,2]
[328808062,1717812650614,-516.99094892,0.00019178,2]
[328808063,1717812650624,-501.34875603,0.00019178,2]
[328808064,1717812650634,-500.0,0.00019178,2]
[328808065,1717812650643,-501.58480216,0.00019178,2]
[328808066,1717812650653,-500.78337924,0.00019178,2]
[328808067,1717812650662,-527.52071542,0.00019178,2]
[328808068,1717812650671,-640.81396951,0.00019178,2]
[328808069,1717812650681,-500.0,0.00019178,2]
[328808070,1717812650692,-500.0,0.00019178,2]
[328808071,1717812650702,-1792.67,0.00019178,2]
[328808072,1717812650711,-500.0,0.00019178,2]
[328808073,1717812650720,-500.98267462,0.00019178,2]
[328808074,1717812650730,-950.15,0.00019178,2]
[328808075,1717812650740,-500.0,0.00019178,2]
[328808076,1717812650750,-501.10036018,0.00019178,2]
[328808077,1717812650760,-500.87091899,0.00019178,2]
[328808078,1717812650769,-510.66211332,0.00019178,2]
[328808079,1717812650779,-500.91651088,0.00019178,2]
[328808080,1717812650789,-516.34446142,0.00019178,2]
[328808081,1717812669402,4243.29577834,9.999e-05,2]
[328808092,1717813308744,154.95351395,9.999e-05,2]
[328808093,1717813333012,-2681.67820183,0.00014381,2]
[328808094,1717813333035,-318.32179817,0.00014382,2]
[328808142,1717813833419,-154.95351395,0.00014379,2]
[328808145,1717813833430,-154.95351395,0.0001438,2]
[328808146,1717813833439,-154.95351395,0.00014381,2]
[328808148,1717813833449,-2681.67820183,0.00014381,2]
[328808150,1717813833459,-443.60484974,0.00014382,2]
[328808152,1717813833468,-24900.0,0.00016341,2]
[328808154,1717813833478,-9294.35537782,0.0001809,2]
[328808156,1717813833488,-296.4803085,0.000189,2]
[328808158,1717813833498,-718.92476032,0.00018988,2]
[328808160,1717813833508,-274.3,0.00018996,3]
[328808162,1717813833517,-313.3493693,0.00019,2]
[328808164,1717813833527,-5380.61031317,0.00019064,2]
[328808165,1717813833537,-150.0,0.00019066,2]
[328808166,1717813833546,-499.0,0.00019066,2]
[328808167,1717813833556,-15408.92920148,0.00019166,2]
[328808168,1717813833568,-2859.41863731,0.00019166,2]
[328808169,1717813833580,-1896.27331591,0.00019166,2]
[328808170,1717813833591,-6926.82402391,0.00019166,2]
[328808232,1717813839569,-2898.95846858,0.00019166,2]
[328808234,1717813839580,-368.56,0.00019166,3]
[328808235,1717813839590,-207.09666888,0.00019176,2]
[328808236,1717813839602,-244.11599523,0.00019176,2]
[328808237,1717813839612,-484.79610118,0.00019176,2]
[328808238,1717813839626,-5762.45478442,0.00019176,2]
[328808253,1717813843811,-9625.87796091,0.00019176,2]
[328808258,1717813843823,-4134.29084561,0.00019176,2]
[328808262,1717813843834,-10483.96462236,0.00019176,2]
[328808264,1717813843844,-3613.5340948,0.00019178,7]
[328808268,1717813843853,-2046.67322021,0.00019178,7]
[328808271,1717813843864,-500.0,0.00019178,2]
[328808274,1717813843874,-500.0,0.00019178,2]
[328808277,1717813843884,-500.0,0.00019178,2]
[328808279,1717813843894,-500.0,0.00019178,2]
[328808280,1717813843904,-500.0,0.00019178,2]
[328808282,1717813843914,-500.79106317,0.00019178,2]
[328808284,1717813843927,-151.42650107,0.00019178,2]
[328808286,1717813843937,-500.0,0.00019178,2]
[328808288,1717813843947,-393.92007907,0.00019178,2]
[328808290,1717813843957,-509.74229043,0.00019178,2]
[328808291,1717813843967,-500.0,0.00019178,2]
[328808293,1717813843978,-398.60512278,0.00019178,2]
[328808295,1717813843987,-500.0,0.00019178,2]
[328808297,1717813843997,-484.74544333,0.00019178,2]
[328808299,1717813844007,-500.0,0.00019178,2]
[328808301,1717813844017,-348.94653607,0.00019178,2]
[328808303,1717813844027,-497.57958067,0.00019178,2]
[328808305,1717813844037,-623.51508139,0.00019178,2]
[328808307,1717813844047,-500.0,0.00019178,2]
[328808309,1717813844056,-500.0,0.00019178,2]
[328808311,1717813844066,-500.0,0.00019178,2]
[328808313,1717813844076,-500.0,0.00019178,2]
[328808315,1717813844086,-401.19557157,0.00019178,2]
[328808317,1717813844096,-155.12141456,0.00019178,2]
[328808318,1717813844105,-500.0,0.00019178,2]
[328808320,1717813844115,-302.20231217,0.00019178,2]
[328808322,1717813844125,-500.0,0.00019178,2]
[328808324,1717813844135,-500.40766237,0.00019178,2]
[328808326,1717813844144,-510.12343533,0.00019178,2]
[328808328,1717813844154,-500.0,0.00019178,2]
[328808330,1717813844164,-533.37154523,0.00019178,2]
[328808332,1717813844176,-500.0,0.00019178,2]
[328808334,1717813844186,-467.56717568,0.00019178,2]
[328808336,1717813844196,-502.73246075,0.00019178,2]
[328808338,1717813844206,-500.0,0.00019178,2]
[328808340,1717813844216,-910.56,0.00019178,2]
[328808342,1717813844225,-500.0,0.00019178,2]
[328808344,1717813844234,-502.9597481,0.00019178,2]
[328808346,1717813844244,-500.0,0.00019178,2]
[328808348,1717813844254,-501.43097555,0.00019178,2]
[328808350,1717813844263,-172.34239219,0.00019178,2]
[328808352,1717813844274,-502.7529092,0.00019178,2]
[328808354,1717813844283,-500.71173433,0.00019178,2]
[328808356,1717813844293,-500.0,0.00019178,2]
[328808357,1717813844302,-500.0,0.00019178,2]
[328808359,1717813844311,-204.20715608,0.00019178,2]
[328808361,1717813844321,-500.0,0.00019178,2]
[328808363,1717813844330,-160.16267239,0.00019178,2]
[328808365,1717813844340,-500.0,0.00019178,2]
[328808367,1717813844350,-500.0,0.00019178,2]
[328808369,1717813844359,-500.0,0.00019178,2]
[328808371,1717813844369,-500.0,0.00019178,2]
[328808373,1717813844379,-501.54238598,0.00019178,2]
[328808375,1717813844389,-500.0,0.00019178,2]
[328808377,1717813844399,-501.53582723,0.00019178,2]
[328808379,1717813844408,-501.63771161,0.00019178,2]
[328808381,1717813844418,-1702.07,0.00019178,2]
[328808383,1717813844428,-502.31850418,0.00019178,2]
[328808385,1717813844438,-505.24663752,0.00019178,2]
[328808387,1717813844448,-500.0,0.00019178,2]
[328808389,1717813844458,-503.50816169,0.00019178,2]
[328808391,1717813844468,-500.0,0.00019178,2]
[328808393,1717813844478,-500.0,0.00019178,2]
[328808395,1717813844487,-502.13448504,0.00019178,2]
[328808397,1717813844497,-502.31392312,0.00019178,2]
[328808399,1717813844507,-500.0,0.00019178,2]
[328808401,1717813844517,-561.72889486,0.00019178,2]
[328808403,1717813844526,-500.0,0.00019178,2]
[328808405,1717813844536,-504.50452726,0.00019178,2]
[328808407,1717813844546,-501.88106782,0.00019178,2]
[328808409,1717813844556,-519.1219041,0.00019178,2]
[328808411,1717813844565,-500.0,0.00019178,2]
[328808413,1717813844575,-500.0,0.00019178,2]
[328808415,1717813844584,-480.42305788,0.00019178,2]
[328808418,1717813844601,-21.52119519,0.00019178,2]
[328808420,1717813844611,-500.0,0.00019178,2]
[328808421,1717813844620,-502.19826811,0.00019178,2]
[328808423,1717813844631,-871.59,0.00019178,2]
[328808425,1717813844640,-268.12180313,0.00019178,2]
[328808429,1717813844666,-231.87819687,0.00019178,2]
[328808431,1717813844676,-500.0,0.00019178,2]
[328808433,1717813844686,-501.2370428,0.00019178,2]
[328808435,1717813844695,-505.36529525,0.00019178,2]
[328808437,1717813844705,-500.0,0.00019178,2]
[328808439,1717813844715,-1156.07,0.00019178,2]
[328808441,1717813844724,-500.0,0.00019178,2]
[328808443,1717813844735,-500.72586244,0.00019178,2]
[328808445,1717813844745,-524.91334881,0.00019178,2]
[328808447,1717813844758,-500.0,0.00019178,2]
[328808449,1717813844767,-500.0,0.00019178,2]
[328808450,1717813844777,-502.40469342,0.00019178,2]
[328808452,1717813844787,-500.0,0.00019178,2]
[328808454,1717813844796,-500.0,0.00019178,2]
[328808456,1717813844806,-500.0,0.00019178,2]
[328808458,1717813844816,-502.54700277,0.00019178,2]
[328808460,1717813844826,-151.0,0.00019178,2]
[328808463,1717813844838,-151.0,0.00019178,2]
[328808465,1717813844848,-151.0,0.00019178,2]
[328808467,1717813844858,-151.0,0.00019178,2]
[328808468,1717813844867,-151.0,0.00019178,2]
[328808471,1717813844878,-151.0,0.00019178,2]
[328808473,1717813844888,-151.0,0.00019178,2]
[328808475,1717813844899,-151.0,0.00019178,2]
[328808477,1717813844908,-209.510464,0.00019178,2]
[328808479,1717813844917,-209.3257343,0.00019178,2]
[328808481,1717813844928,-500.0,0.00019178,2]
[328808493,1717813845045,-579.73,0.00019178,2]
[328808495,1717813845055,-500.0,0.00019178,2]
[328808498,1717813845066,-668.79,0.00019178,2]
[328808499,1717813845075,-283.0354579,0.00019178,2]
[328808502,1717813845084,-500.0,0.00019178,2]
[328808504,1717813845095,-501.56267487,0.00019178,2]
[328808506,1717813845104,-511.35332157,0.00019178,2]
[328808507,1717813845113,-500.0,0.00019178,2]
[328808509,1717813845123,-491.88487274,0.00019178,2]
[328808511,1717813845133,-500.0,0.00019178,2]
[328808514,1717813845143,-500.0,0.00019178,2]
[328808515,1717813845153,-500.0,0.00019178,2]
[328808518,1717813845163,-619.97471036,0.00019178,2]
[328808520,1717813845174,-500.0,0.00019178,2]
[328808522,1717813845184,-384.18151816,0.00019178,2]
[328808524,1717813845194,-500.0,0.00019178,2]
[328808526,1717813845203,-410.20567715,0.00019178,2]
[328808528,1717813845213,-500.0,0.00019178,2]
[328808531,1717813845223,-502.1385557,0.00019178,2]
[328808532,1717813845233,-500.0,0.00019178,2]
[328808534,1717813845243,-728.95,0.00019178,2]
[328808536,1717813845252,-500.0,0.00019178,2]
[328808539,1717813845262,-11.29173721,0.00019178,2]
[328808541,1717813845277,-488.70826279,0.00019178,2]
[328808543,1717813845286,-171.73637257,0.00019178,2]
[328808608,1717813847544,-328.26362743,0.00019178,2]
[328808609,1717813847554,-794.32,0.00019178,2]
[328808610,1717813847563,-500.0,0.00019178,2]
[328808611,1717813847574,-500.0,0.00019178,2]
[328808612,1717813847583,-502.8463977,0.00019178,2]
[328808613,1717813847592,-140.56415646,0.00019178,2]
[328808614,1717813847618,-359.43584354,0.00019178,2]
[328808615,1717813847629,-500.0,0.00019178,2]
[328808616,1717813847639,-19.49090902,0.00019178,2]
[328808617,1717813847654,-480.50909098,0.00019178,2]
[328808618,1717813847664,-481.30302225,0.00019178,2]
[328808620,1717814217681,6883.94351545,0.000125,2]
[328808621,1717814659871,2011.87887125,0.00023013,120]
[328808800,1717815038699,-154.95351395,0.0001764,2]
[328808802,1717815038708,-1546.81793188,0.0001764,2]
[328808804,1717815038721,-1024.25,0.0001764,2]
[328808805,1717815038733,-110.61026995,0.0001764,2]
[328808806,1717815038742,-664.6410578,0.00017641,2]
[328809074,1717815588027,180.38835435,9.999e-05,2]
[328809076,1717815619728,-154.95351395,0.00014236,2]
[328809077,1717815619756,-2681.67820183,0.00014237,2]
[328809078,1717815619783,-154.95351395,0.00014245,2]
[328809079,1717815619809,-1138.90852539,0.00014246,2]
[328809081,1717815756582,1117.41041356,0.00016446,7]
[328809082,1717815816556,558.70520679,0.00016446,7]
[328809083,1717815875661,279.35260339,0.00016446,7]
[328809084,1717815907705,1577.69715027,9.999e-05,2]
[328809085,1717815915724,-2681.67820183,0.00016445,2]
[328809086,1717815915747,-154.95351395,0.00016445,2]
[328809087,1717815915772,-24163.36828422,0.00016446,2]
[328809139,1717816233105,-1051.79810018,0.00016445,2]
[328809140,1717816233116,-736.63171578,0.00016446,2]
[328809141,1717816233126,-1717.7584874,0.0001662,2]
[328809142,1717816233136,-3000.0,0.00016831,2]
[328809143,1717816233146,-4236.27632862,0.00017473,2]
[328809144,1717816233156,-933.88927422,0.00017794,2]
[328809145,1717816233165,-2346.07155055,0.00017894,2]
[328809146,1717816233175,-500.0,0.00017894,2]
[328809147,1717816233184,-2544.94,0.00017894,2]
[328809148,1717816233194,-500.0,0.00017894,2]
[328809149,1717816233206,-958.67,0.00017894,2]
[328809150,1717816233217,-271.65368726,0.00017894,2]
[328809151,1717816233227,-3052.9,0.00017894,2]
[328809152,1717816233237,-11347.06,0.00017894,2]
[328809153,1717816233246,-2323.6,0.00017894,2]
[328809154,1717816233257,-521.61379551,0.00017894,2]
[328809155,1717816233267,-500.0,0.00017894,2]
[328809156,1717816233276,-1954.79,0.00017894,2]
[328809157,1717816233286,-2482.82,0.00017894,2]
[328809158,1717816233295,-1089.91,0.00017894,2]
[328809159,1717816233305,-508.19876595,0.00017894,2]
[328809160,1717816233315,-663.57,0.00017894,2]
[328809161,1717816233325,-525.38434699,0.00017894,2]
[328809162,1717816233334,-500.0,0.00017894,2]
[328809163,1717816233343,-2006.55,0.00017894,2]
[328809164,1717816233352,-500.0,0.00017894,2]
[328809165,1717816233362,-177.78637968,0.00017895,2]
[328809166,1717816233371,-3689.95,0.00017895,2]
[328809167,1717816233381,-412.83957924,0.00017895,2]
[328809193,1717816238902,-595.16,0.00017894,2]
[328809194,1717816238912,-279.35260339,0.00017895,7]
[328809196,1717816238922,-170.09042076,0.00017895,2]
[328809198,1717816238932,-1519.94,0.00017895,2]
[328809200,1717816238942,-612.64066593,0.00017895,2]
[328809203,1717816239298,-4218.40933407,0.00017895,2]
[328809204,1717816239309,-124.91316381,0.00017895,2]
[328809210,1717816243195,-558.64,0.00017894,2]
[328809213,1717816243206,-375.08683619,0.00017895,2]
[328809216,1717816243215,-2552.84161534,0.00017895,2]
[328810191,1717816360880,154.95351395,9.999e-05,2]
[328810192,1717816477343,-876.49841682,0.00016895,2]
[328810193,1717816477364,-275.55259809,0.00016896,2]
[328810194,1717816477387,-18847.94898509,0.00016897,2]
[328810195,1717816615075,-275.55259809,0.00016895,2]
[328810196,1717816615097,-456.65567516,0.00016896,2]
[328810197,1717816615119,-9385.79172675,0.00016896,2]
[328810198,1717816643465,-1015.57874293,0.00016797,2]
[328810199,1717816643490,-188.2754351,0.00016894,2]